Cogmind - Beta 15 @@@ ROGUE MODE // 2025.10.21 @ 06:56:53 // Winter2019/RPGLIKE Player: War__Prophet Result: Destroyed by S-10 Pest with Light Assault Rifle Performance ------------- Evolutions (1) 500 Regions Visited (5) 1000 Robots Destroyed (0) 0 Value Destroyed (0) 0 Prototype IDs (1) 20 Alien Tech Used (0) 0 Bonus (400) 400 TOTAL SCORE: 1920 Bonus ------- Pacifist 200 Entered Garrisons 200 Cogmind --------- Core Integrity 0/1350 Matter 300/300 Energy 99/100 System Corruption 4% Temperature Cool (0) Movement Core (50) Location -9/Garrison Parts ------- > --- POWER (1) -------- (None) > --- PROPULSION (1) --- (None) > --- UTILITY (1) ------ (None) > --- WEAPON (1) ------- (None) > --- INVENTORY (0) ---- (None) Peak State ------------ > --- POWER ------------ (None) > --- PROPULSION ------- Flight Unit > --- UTILITY ---------- Experimental Sensor Array > --- WEAPON ----------- Mining Laser > --- INVENTORY -------- (None) [Rating: 11] Favorites ----------- Power None Propulsion Flight Unit Flight Unit Flight Unit Utility Experimental Sensor Array Device Experimental Sensor Array Weapon Mining Laser Special Weapon Mining Laser Build | -11 -10 -10 -9 -9 -9 ------- Run | Yrd Mat Min Mat Sto Gar Slots Evolved . | . . . . . . Power . | . . . . . . Propulsion . | . . . . . . Utility . | . . . . . . Weapon . | . . . . . . Parts Attached 3 | . . 3 . . . Power . | . . . . . . Engine . | . . . . . . Core . | . . . . . . Reactor . | . . . . . . Propulsion 1 | . . 1 . . . Treads . | . . . . . . Leg . | . . . . . . Wheel . | . . . . . . Hover . | . . . . . . Flight 1 | . . 1 . . . Utility 1 | . . 1 . . . Device 1 | . . 1 . . . Storage . | . . . . . . Processor . | . . . . . . Hackware . | . . . . . . Protection . | . . . . . . Artifact . | . . . . . . Weapon 1 | . . 1 . . . Energy Gun . | . . . . . . Energy Cannon . | . . . . . . Ballistic Gun . | . . . . . . Ballistic Cannon . | . . . . . . Launcher . | . . . . . . Special Weapon 1 | . . 1 . . . Impact Weapon . | . . . . . . Slashing Weapon . | . . . . . . Piercing Weapon . | . . . . . . Special Melee Weapon . | . . . . . . Unidentified Prototypes 1 | . . 1 . . . Parts Lost 2 | . . . . 2 . Power . | . . . . . . Propulsion 1 | . . . . 1 . Utility 1 | . . . . 1 . Weapon . | . . . . . . Highest Loss Streak 2 | . . . . 2 . To Critical Strikes . | . . . . . . Average Backups . | . . . . . . Power . | . . . . . . Propulsion . | . . . . . . Utility . | . . . . . . Weapon . | . . . . . . Tool/Special . | . . . . . . Unused Backups . | . . . . . . Power . | . . . . . . Propulsion . | . . . . . . Utility . | . . . . . . Weapon . | . . . . . . Tool/Special . | . . . . . . Average Slot Usage (%) 22 | . . 36 50 29 . Flight 11 | . . 20 25 12 . Device 10 | . . 15 25 16 . Peak Build Rating 11 | . . 11 10 10 . Average Rating 4 | . . 6 10 5 . On Entrance 3 | . . . 10 10 . Naked Turns 219 | . 24 26 . 43 126 Heaviest Build 2 | . . 2 1 1 . Greatest Support 19 | 3 3 4 4 19 18 Greatest Overweight (x) . | . . . . . . Average Overweight (x) . | . . . . . . Largest Inventory Capacity . | . . . . . . Average Capacity . | . . . . . . Most Carried . | . . . . . . Average Carried . | . . . . . . Final Capacity . | . . . . . . Final Carried . | . . . . . . Class Distribution -------------------- 100% | Mutant Dominant Class ---------------- Mutant | -10/Materials Mutant | -10/Mines Mutant | -9/Materials Mutant | -9/Storage Mutant | -9/Garrison Resources | -11 -10 -10 -9 -9 -9 ----------- Run | Yrd Mat Min Mat Sto Gar Matter Collected 230 | 98 . 132 . . . Remotely . | . . . . . . Salvage Created . | . . . . . . Parts . | . . . . . . Haulers Intercepted . | . . . . . . Recyclers Shooed . | . . . . . . Parts Field Recycled . | . . . . . . Retrieved Matter . | . . . . . . Parts Self-Destructed . | . . . . . . Prevented . | . . . . . . Kills | -11 -10 -10 -9 -9 -9 ------- Run | Yrd Mat Min Mat Sto Gar Combat Hostiles Destroyed . | . . . . . . Classes Destroyed . | . . . . . . Best Kill Streak . | . . . . . . Combat Bots Only . | . . . . . . Max Kills in Single Turn . | . . . . . . Gunslinging . | . . . . . . Exploded . | . . . . . . Melee . | . . . . . . Uniques/NPCs Destroyed . | . . . . . . Combat | -11 -10 -10 -9 -9 -9 -------- Run | Yrd Mat Min Mat Sto Gar Hostile Shots Fired 189 | . . 28 . 39 122 Missed 55 | . . 8 . 8 39 Hits 134 | . . 20 . 31 83 Projectile 134 | . . 20 . 31 83 AOE 3 | . . 3 . . . Critical Strikes 3 | . . 1 . 2 . Damage Taken 1387 | . . 256 . 463 668 Core 1354 | . . 238 . 448 668 Absorbed by Shields 38 | . . . . . 38 Redirected to Core 108 | . . 57 . 51 . Core Remaining (%) 80 | 100 . 60 . . . Volleys Fired 2 | . . 2 . . . Largest 1 | . . 1 . . . Hottest 100 | . . 100 . . . Shots Fired 2 | . . 2 . . . Gun . | . . . . . . Cannon . | . . . . . . Launcher . | . . . . . . Special 2 | . . 2 . . . Kinetic . | . . . . . . Thermal 2 | . . 2 . . . Explosive . | . . . . . . Electromagnetic . | . . . . . . Robot Hit Streak . | . . . . . . Robot Miss Streak 2 | . . 2 . . . Penetration Max . | . . . . . . Secondary Targets . | . . . . . . Shots Hit Robots . | . . . . . . Core Hits 1 | . . . . . 1 Critical Kills . | . . . . . . Critical Parts Destroyed . | . . . . . . Critical Strikes . | . . . . . . Melee Attacks . | . . . . . . Impact . | . . . . . . Slashing . | . . . . . . Piercing . | . . . . . . Sneak Attacks . | . . . . . . Combat Hostiles . | . . . . . . Follow-up Attacks . | . . . . . . Damage Inflicted 51 | . . . . 19 32 Guns . | . . . . . . Cannons . | . . . . . . Explosions . | . . . . . . Melee . | . . . . . . Ramming 51 | . . . . 19 32 Kinetic . | . . . . . . Thermal . | . . . . . . Explosive . | . . . . . . Electromagnetic . | . . . . . . Impact . | . . . . . . Slashing . | . . . . . . Piercing . | . . . . . . Highest Corruption 4 | . . . . 4 4 Average Corruption 3 | . . . . 3 4 Corruption Purged . | . . . . . . Corruption Blocked . | . . . . . . Effects 4 | . . . . . 4 Matter Fused 2 | . . . . . 2 Energy Discharges 1 | . . . . . 1 Alerts 1 | . . . . . 1 Overload Shots . | . . . . . . Overflow Damage . | . . . . . . Projectiles . | . . . . . . Explosions . | . . . . . . Melee . | . . . . . . Knockbacks . | . . . . . . Impact . | . . . . . . Kinetic . | . . . . . . Secondary . | . . . . . . Self-Inflicted Damage 24 | . . . . 9 15 Shots . | . . . . . . Rammed 18 | . . . . 7 11 Targets Rammed 18 | . . . . 7 11 Kicked . | . . . . . . Crushed . | . . . . . . Highest Temperature 9 | . . 9 . 2 . Average Temperature 5 | . . 5 . 2 . Received Heat Transfer 221 | . . 54 . 129 38 Siege Activations . | . . . . . . Martial Activations . | . . . . . . Shielding Activations . | . . . . . . Robots Disrupted . | . . . . . . Combat Hostiles . | . . . . . . Robots Corrupted . | . . . . . . Combat Hostiles . | . . . . . . Parts Fried . | . . . . . . Impact Corruptions . | . . . . . . Robots Melted . | . . . . . . Combat Hostiles . | . . . . . . Parts Melted . | . . . . . . Heat Transferred . | . . . . . . Parts Sabotaged . | . . . . . . Parts Stolen . | . . . . . . Parts Stripped . | . . . . . . Power Chain Reactions . | . . . . . . Alert | -11 -10 -10 -9 -9 -9 ------- Run | Yrd Mat Min Mat Sto Gar Maximum Alert Level . | . . . . . . Low Security (%) 100 | 100 100 100 100 100 100 Level 1 . | . . . . . . Level 2 . | . . . . . . Level 3 . | . . . . . . Level 4 . | . . . . . . Level 5 . | . . . . . . High Security . | . . . . . . Max Security . | . . . . . . Peak Influence 55 | . . 55 20 32 47 Initial 20 | . . . 20 8 3 Average 14 | . . 19 20 9 14 Influence Increases 215 | . . 122 . 49 44 Successful Hack 18 | . . . . 4 14 Destroy Structure 2 | . . 2 . . . Partial Spotted 30 | . . . . 30 . Lose Combat Pursuer 165 | . . 120 . 15 30 Influence Decreases 168 | . . 70 32 64 2 Entered New Map 46 | . . . 32 12 2 Time Decay 110 | . . 70 . 40 . Lost Part 12 | . . . . 12 . Squads Dispatched 2 | . 1 . . 1 . Investigation 1 | . . . . 1 . Extermination . | . . . . . . Reinforcement 1 | . 1 . . . . Assault . | . . . . . . Garrison . | . . . . . . Intercept . | . . . . . . Searches Triggered . | . . . . . . Construction Impeded . | . . . . . . Haulers Reinforced . | . . . . . . Active Scanning Responses . | . . . . . . Cargo Convoy Interrupts . | . . . . . . Stealth | -11 -10 -10 -9 -9 -9 --------- Run | Yrd Mat Min Mat Sto Gar Distress Signals 1 | . 1 . . . . Communications Jammed . | . . . . . . Distress Signals . | . . . . . . Times Spotted 37 | . 1 14 . 9 13 Peak Tracking Total 10 | . 2 8 . 10 10 Tactical Retreats 6 | . . 4 . 1 1 Traps | -11 -10 -10 -9 -9 -9 ------- Run | Yrd Mat Min Mat Sto Gar Traps Triggered 7 | . . . . 2 5 Indirectly . | . . . . . . Trap Hack Attempts . | . . . . . . Triggered . | . . . . . . Disarmed . | . . . . . . Reprogrammed . | . . . . . . Reused . | . . . . . . Traps Extracted . | . . . . . . Installed . | . . . . . . Triggered . | . . . . . . Machines | -11 -10 -10 -9 -9 -9 ---------- Run | Yrd Mat Min Mat Sto Gar Machines Disabled . | . . . . . . Max in Single Turn . | . . . . . . Machines Repaired . | . . . . . . Machines Dismantled . | . . . . . . Machines Sabotaged . | . . . . . . Overloaded Fab Kills . | . . . . . . Hacking | -11 -10 -10 -9 -9 -9 --------- Run | Yrd Mat Min Mat Sto Gar Machines Accessed 3 | . . . . 2 1 Terminals 2 | . . . . 1 1 Fabricators . | . . . . . . Repair Stations . | . . . . . . Recycling Units . | . . . . . . Scanalyzers . | . . . . . . Garrison Access 1 | . . . . 1 . Total Hacks 13 | . . . . 10 3 Successful 6 | . . . . 5 1 Failed 7 | . . . . 5 2 Catastrophic 1 | . . . . . 1 Database Lockouts . | . . . . . . Manual . | . . . . . . Terminals 12 | . . . . 9 3 Fabricators . | . . . . . . Repair Stations . | . . . . . . Recycling Units . | . . . . . . Scanalyzers . | . . . . . . Garrison Access 1 | . . . . 1 . Terminal Hacks 5 | . . . . 4 1 Record 2 | . . . . 2 . Robot Schematic 1 | . . . . 1 . Dispatch Records 1 | . . . . 1 . Patrol Navigation 1 | . . . . . 1 Fabricator Hacks . | . . . . . . Repair Station Hacks . | . . . . . . Recycling Unit Hacks . | . . . . . . Scanalyzer . | . . . . . . Garrison Access Hacks 1 | . . . . 1 . Unlock Access 1 | . . . . 1 . Unauthorized Hacks . | . . . . . . Terminals . | . . . . . . Fabricators . | . . . . . . Repair Stations . | . . . . . . Recycling Units . | . . . . . . Scanalyzers . | . . . . . . Garrison Access . | . . . . . . Data Cores Recovered . | . . . . . . Used . | . . . . . . Hacking Detections 2 | . . . . 1 1 Full Trace Events 1 | . . . . 1 . Feedback Events . | . . . . . . Feedback Blocked . | . . . . . . Robot Schematics Acquired 1 | . . . . 1 . Robots Built . | . . . . . . Authchips . | . . . . . . Time . | . . . . . . Total Robot Build Rating . | . . . . . . Part Schematics Acquired . | . . . . . . Parts Built . | . . . . . . Authchips . | . . . . . . Time . | . . . . . . Total Part Build Rating . | . . . . . . Parts Repaired . | . . . . . . Time . | . . . . . . Parts Recycled . | . . . . . . Recycled Matter . | . . . . . . Retrieved Matter . | . . . . . . Retrieved Components . | . . . . . . Parts Scanalyzed . | . . . . . . Part Schematics Acquired . | . . . . . . Parts Damaged . | . . . . . . Bothacking | -11 -10 -10 -9 -9 -9 ------------ Run | Yrd Mat Min Mat Sto Gar Used RIF Installer . | . . . . . . Robots Hacked . | . . . . . . Non-combat . | . . . . . . Combat . | . . . . . . Robot Hacks Applied . | . . . . . . Relay Couplers Released . | . . . . . . Fabnet Peak Effective % . | . . . . . . Robots Rewired . | . . . . . . Allies Hacked . | . . . . . . Hacks Repelled . | . . . . . . Allies | -11 -10 -10 -9 -9 -9 -------- Run | Yrd Mat Min Mat Sto Gar Total Allies . | . . . . . . Largest Group . | . . . . . . Highest-Rated Group . | . . . . . . Highest-Rated Ally . | . . . . . . Total Orders . | . . . . . . Ally Attacks . | . . . . . . Total Damage . | . . . . . . Kills . | . . . . . . Allies Corrupted . | . . . . . . Allies Melted . | . . . . . . Intel | -11 -10 -10 -9 -9 -9 ------- Run | Yrd Mat Min Mat Sto Gar Active Infowar (turns) 187 | . . 117 4 66 . Sensors 187 | . . 117 4 66 . Robot Analysis Total . | . . . . . . Derelict Logs Recovered 3 | . . 3 . . . Drone Launches . | . . . . . . Drone Recoveries . | . . . . . . Exploration | -11 -10 -10 -9 -9 -9 ------------- Run | Yrd Mat Min Mat Sto Gar Turns Passed 461 | 11 24 187 4 109 126 Spaces Moved 899 | 21 47 421 10 207 193 Core 405 | 21 47 49 . 95 193 Treads . | . . . . . . Legs . | . . . . . . Wheels . | . . . . . . Hover . | . . . . . . Flight 494 | . . 372 10 112 . Fastest Speed 40 | 50 50 40 40 40 50 Average Speed 44 | 50 50 41 40 44 50 Slowest Speed 50 | 50 50 50 40 50 50 Overloaded Moves . | . . . . . . Propulsion Burnouts . | . . . . . . Robots Hopped 8 | . . 8 . . . Potential Cave-ins . | . . . . . . Cave-ins Triggered . | . . . . . . Exploration Rate (%) 27 | 3 18 69 3 37 33 Regions Visited 5 Branch Regions 2 Pre-discovered Areas . | . . . . . . Known Exits Taken 1 | . . . . 1 . Unknown Exits Taken 4 | 1 1 1 1 . . Scrap Searched 1 | . . 1 . . . Spaces Dug . | . . . . . . Terrain Destroyed 2 | . . 2 . . . Melee . | . . . . . . Projectile 2 | . . 2 . . . AOE . | . . . . . . Terrain Rammed . | . . . . . . Walls Destroyed . | . . . . . . Machines Disabled . | . . . . . . Actions | -11 -10 -10 -9 -9 -9 --------- Run | Yrd Mat Min Mat Sto Gar Total 939 | 20 46 419 9 223 222 Wait 10 | . . . . 10 . Move 878 | 20 46 404 9 206 193 Hop 8 | . . 8 . . . Pick Up . | . . . . . . Fast Attach 3 | . . 3 . . . Attach . | . . . . . . Detach . | . . . . . . Swap . | . . . . . . Drop 1 | . . 1 . . . Fire 2 | . . 2 . . . Melee . | . . . . . . Ram 18 | . . . . 7 11 Kick . | . . . . . . Crush . | . . . . . . Escape Stasis 18 | . . . . . 18 Rewire 1 | . . 1 . . . Trap . | . . . . . . Miscellaneous . | . . . . . . Route ------- -11/Scrapyard -10/Materials -10/Mines -9/Materials -9/Storage -9/Garrison (discovered 1 exit: [*Rec]) History --------- Turn | Location | Event 4 | -11/Scrapyard | Discovered new exit (range 16) 12 | -11/Scrapyard | Entered Materials 27 | -10/Materials | Discovered new exit (range 16) 36 | -10/Materials | Entered Mines 43 | -10/Mines | Learned Materials terminal intel 96 | -10/Mines | Learned Materials terminal intel 105 | -10/Mines | Found a damaged Exp. Sensor Array with a note attached 106 | -10/Mines | Found Prototype Device 106 | -10/Mines | Identified Exp. Sensor Array 108 | -10/Mines | Assembled infested the area 114 | -10/Mines | Received a Rocket Launcher from a helpful Derelict 222 | -10/Mines | Discovered new exit (range 4) 223 | -10/Mines | Entered Materials 223 | -9/Materials | Discovered new exit (range 10) 224 | -9/Materials | Loaded intel: 12 terminal locations 225 | -9/Materials | Reached level 2 227 | -9/Materials | Entered Storage 229 | -9/Storage | Reached level 3 279 | -9/Storage | Core integrity fell below 50% 301 | -9/Storage | Build established: Mutant 313 | -9/Storage | Core integrity fell below 20% 336 | -9/Storage | Identified exit to Garrison 336 | -9/Storage | Entered Garrison 386 | -9/Garrison | Triggered checkpoint 398 | -9/Garrison | Triggered checkpoint 412 | -9/Garrison | Discovered new exit (range 10) 432 | -9/Garrison | Triggered checkpoint 462 | -9/Garrison | Destroyed by S-10 Pest with Light Assault Rifle Last Messages --------------- 00433_ Field strength at 46. 00434_ Field strength at 26. 00435_ Field strength at 6. 00436_ Stasis field depleted. 00436_ Triggered Stasis Trap. 00436_ A bubble of rippling energy engulfs the area. 00436_ Field strength at 82. 00436_ Field strength at 64. 00437_ Field strength at 40. 00438_ Field strength at 14. 00439_ Stasis field depleted. 00444_ System corrupted: Matter fused (-10). 00444_ Connecting with Garrison Terminal... >>Download(Navigation) Retrieving Recycling patrol records... Downloaded protocol data. 00445_ Slammed into S-10 Pest. 00447_ Upgraded: Sensor Range (+2) 00447_ Slammed into G-34 Mercenary. 00449_ Slammed into S-10 Pest. Map ----- +----------------------------------------------------+ | ??????????????????# ######### ######## | | ??????????????????# # #???????# #??????## ## | | ??????????????????######???????#####???????# #?? | | ???????????????????????????????????????????# #?? | | ???????????????????????????????????????????# #?? | | ???????????????????????????????????????????# #?? | | ???????????????????????????????????????????# #?? | | ???????????????????????????????????????????# #?? | | ??????????????????????###################### #?? | | ??????????????????????# #?? | | ??????????????????????# #?? | | ??????????????????????# ######################?? | | ??????????????????????# #??????????????????????? | | ??????????????????????# #??????????????????????? | | ??????????????????????# #??????????????????????? | | ??????????????????????# #??????????????????????? | | ??????????????????????# #??????????????????????? | | ??????????????????????# #??????????????????????? | | ??????????????????????# #??????????????????????? | | ??????????????????????# ###????????????????????? | | ????????#########?????#s #????????????????????? | | ????????# "#?????# < #????????????????????? | | ????????# ##"T"#?????# #????????????????????? | | ??????### %######?????# ###????????????????????? | | ??????#"# %###????????# #??????????????????????? | | ??????#" % #????????# @#??????????????????????? | | ??????#" #????????# #??????????????????????? | | ??????#" #????????# #??????????????????????? | | ??????#"# ###??#####?#s%#??????????????????????? | | ??????### #????# #?#ss#??????????????????????? | | ????????#^ ###### ###s%#??????????????????????? | | ????????# +??????????????????????? | | ????????# +??????????????????????? | | ????????##################??????????????????????? | | ????????????????????????????????????????????????? | | ????????????????????????????????????????????????? | | ????????????????????????????????????????????????? | | ????????????????????????????????????????????????? | | ????????????????????????????????????????????????? | | ????????????????????????????????????????????????? | | ????????????????????????????????????????????????? | | ????????????????????????????????????????????????? | | ????????????????????????????????????????????????? | | ????????????????????????????????????????????????? | | | | | | | | | | | | | +----------------------------------------------------+ Best States ------------- Heat Dissipation 25 Energy Generation 5 Energy Capacity 100 Matter Stores 300 Matter Capacity 300 Sight Range 16 Robot Scan Range 20 Terrain Scan Density 10 Evasion (%) 62 Item Schematics ----------------- None Robot Schematics ------------------ G-34 Mercenary | -9/Storage | Hacked Fabricated ------------ Nothing Repaired ---------- Nothing Alien Tech Used ----------------- None Achievements -------------- None Challenges ------------ None RPGLIKE | -11 -10 -10 -9 -9 -9 --------- Run | Yrd Mat Min Mat Sto Gar Levels Raised 2 | . . . 1 1 . XP Earned 6770 | 3000 . 600 1500 1000 670 XP Spent 5975 | . . 2700 . 3225 50 Upgrades 25 | . . 6 . 18 1 Core Integrity 15 | . . . . 15 . Mass Support 3 | . . . . 3 . Sensor Range 1 | . . . . . 1 Melee Accuracy 6 | . . 6 . . . Protomatter Created . | . . . . . . Protomatter Decayed 54 | . . 54 . . . Game ------ Seed SensorCryofiberRifle Manual? 0 Play Time 00:06:35 Cumulative 38.2 hours Start 2025.10.21 @ 06:51:35 End 2025.10.21 @ 06:56:53 Sessions 1 Manual Loads 0 Difficulty Rogue Special Mode Winter2019/RPGLIKE Game No. 152 Rogue 152 Adventurer 0 Explorer 0 Win Type - Total 0 Types 0/0/0/0/0/0/0/0/0/0 Lore% 12 Gallery% 32 Achievement% 31 Wizard Run 0 Options --------- Layout 2 ASCII 0 Keyboard 1 Movement Vi Keybinds 0 Fullscreen 1 Font 16/SmallcapsGlow Map View 55x47 Zoom Use 0% Tactical HUD 1 Map Filters NONE Filters NONE Steam 1 RUN: f1185a3d-aff8-4e0a-9491-7b47e6249302